[Event "Titled Tuesday Blitz April 4 Early 2023"]
[White "Tokman, Ariel"]
[Black "Zemlyanskii, Ivan"]
[WhiteFideId "117420"]
[BlackFideId "24249971"]
[WhiteElo "2263"]
[BlackElo "2419"]
[Result "0-1"]
[Round "03"]
[TimeControl "180+2"]
[Date "2023.04.04"]
[WhiteClock "0:00:16"]
[BlackClock "0:00:07"]

1. c4 {[%clk 0:03:00]}  c6 {[%clk 0:02:54]} 2. d4 {[%clk 0:03:00]}  d5 {[%clk 0:02:54]} 3. e3 {[%clk 0:03:00]}  Nf6 {[%clk 0:02:53]} 4. Nf3 {[%clk 0:03:00]}  Bf5 {[%clk 0:02:53]} 5. Nc3 {[%clk 0:02:58]}  e6 {[%clk 0:02:52]} 6. Qb3 {[%clk 0:02:55]}  Qb6 {[%clk 0:02:47]} 7. Nh4 {[%clk 0:02:48]}  Bg6 {[%clk 0:02:38]} 8. Nxg6 {[%clk 0:02:48]}  hxg6 {[%clk 0:02:38]} 9. Qc2 {[%clk 0:02:43]}  Nbd7 {[%clk 0:02:35]} 10. h3 {[%clk 0:02:41]}  Qc7 {[%clk 0:02:32]} 11. Be2 {[%clk 0:02:41]}  Be7 {[%clk 0:02:24]} 12. Bd2 {[%clk 0:02:41]}  Nb6 {[%clk 0:02:15]} 13. cxd5 {[%clk 0:02:39]}  exd5 {[%clk 0:02:12]} 14. Rc1 {[%clk 0:02:40]}  O-O {[%clk 0:02:06]} 15. O-O {[%clk 0:02:38]}  Rfe8 {[%clk 0:02:04]} 16. Bd3 {[%clk 0:02:30]}  Qd7 {[%clk 0:01:58]} 17. Na4 {[%clk 0:02:24]}  Nxa4 {[%clk 0:01:52]} 18. Qxa4 {[%clk 0:02:24]}  Bd6 {[%clk 0:01:53]} 19. b4 {[%clk 0:02:24]}  Ne4 {[%clk 0:01:53]} 20. Bxe4 {[%clk 0:02:17]}  Rxe4 {[%clk 0:01:53]} 21. b5 {[%clk 0:02:01]}  cxb5 {[%clk 0:01:52]} 22. Qb3 {[%clk 0:02:01]}  g5 {[%clk 0:01:49]} 23. f3 {[%clk 0:01:46]}  Re7 {[%clk 0:01:37]} 24. Kh1 {[%clk 0:01:45]}  Bc7 {[%clk 0:01:22]} 25. Rc5 {[%clk 0:01:44]}  Qd6 {[%clk 0:01:22]} 26. f4 {[%clk 0:01:39]}  gxf4 {[%clk 0:01:22]} 27. Rxf4 {[%clk 0:01:35]}  Qg6 {[%clk 0:01:14]} 28. Rg4 {[%clk 0:01:15]}  Qf5 {[%clk 0:01:09]} 29. Kg1 {[%clk 0:01:00]}  Rd8 {[%clk 0:00:57]} 30. Qxb5 {[%clk 0:01:00]}  Bd6 {[%clk 0:00:52]} 31. Rc1 {[%clk 0:00:54]}  Re4 {[%clk 0:00:38]} 32. Qd3 {[%clk 0:00:44]}  Qe6 {[%clk 0:00:35]} 33. Rxe4 {[%clk 0:00:43]}  dxe4 {[%clk 0:00:36]} 34. Qc4 {[%clk 0:00:42]}  Qxc4 {[%clk 0:00:33]} 35. Rxc4 {[%clk 0:00:42]}  f5 {[%clk 0:00:31]} 36. Bb4 {[%clk 0:00:42]}  Bxb4 {[%clk 0:00:27]} 37. Rxb4 {[%clk 0:00:43]}  Rd7 {[%clk 0:00:28]} 38. Rb5 {[%clk 0:00:42]}  g6 {[%clk 0:00:28]} 39. g4 {[%clk 0:00:42]}  Rf7 {[%clk 0:00:27]} 40. Kf2 {[%clk 0:00:39]}  fxg4+ {[%clk 0:00:26]} 41. Kg2 {[%clk 0:00:38]}  gxh3+ {[%clk 0:00:26]} 42. Kxh3 {[%clk 0:00:37]}  b6 {[%clk 0:00:24]} 43. Kg4 {[%clk 0:00:34]}  Rf3 {[%clk 0:00:24]} 44. Rb3 {[%clk 0:00:33]}  Kg7 {[%clk 0:00:24]} 45. Ra3 {[%clk 0:00:33]}  Kh6 {[%clk 0:00:20]} 46. Rxa7 {[%clk 0:00:30]}  Rxe3 {[%clk 0:00:20]} 47. Kf4 {[%clk 0:00:31]}  Re1 {[%clk 0:00:18]} 48. Rb7 {[%clk 0:00:27]}  e3 {[%clk 0:00:18]} 49. Kf3 {[%clk 0:00:26]}  e2 {[%clk 0:00:16]} 50. Kf2 {[%clk 0:00:24]}  Ra1 {[%clk 0:00:16]} 51. Rxb6 {[%clk 0:00:16]}  e1=Q+ {[%clk 0:00:07]} 0-1


[Site "https://www.chess.com"]

[Event "Titled Tuesday Blitz April 4 Early 2023"]
[White "Astafurov, Arseniy"]
[Black "Rohith Krishna S"]
[WhiteFideId "24175218"]
[BlackFideId "46617051"]
[WhiteElo "2163"]
[BlackElo "2270"]
[Result "0-1"]
[Round "03"]
[TimeControl "180+2"]
[Date "2023.04.04"]
[WhiteClock "0:00:12"]
[BlackClock "0:00:26"]

1. c4 {[%clk 0:02:59]}  f5 {[%clk 0:02:58]} 2. Nc3 {[%clk 0:03:00]}  g6 {[%clk 0:02:58]} 3. Nf3 {[%clk 0:03:00]}  Bg7 {[%clk 0:02:58]} 4. g3 {[%clk 0:02:59]}  Nf6 {[%clk 0:02:58]} 5. Bg2 {[%clk 0:03:00]}  O-O {[%clk 0:02:58]} 6. d3 {[%clk 0:02:59]}  d6 {[%clk 0:02:59]} 7. O-O {[%clk 0:03:00]}  c6 {[%clk 0:02:59]} 8. e4 {[%clk 0:03:00]}  e5 {[%clk 0:02:56]} 9. Re1 {[%clk 0:02:54]}  a5 {[%clk 0:02:54]} 10. exf5 {[%clk 0:02:47]}  gxf5 {[%clk 0:02:52]} 11. d4 {[%clk 0:02:47]}  e4 {[%clk 0:02:52]} 12. Nh4 {[%clk 0:02:47]}  Be6 {[%clk 0:02:21]} 13. d5 {[%clk 0:02:30]}  cxd5 {[%clk 0:02:19]} 14. cxd5 {[%clk 0:02:31]}  Bd7 {[%clk 0:02:19]} 15. Bf4 {[%clk 0:02:17]}  Ra6 {[%clk 0:02:16]} 16. a4 {[%clk 0:02:15]}  Ng4 {[%clk 0:02:15]} 17. h3 {[%clk 0:02:11]}  Ne5 {[%clk 0:02:15]} 18. Bxe5 {[%clk 0:01:46]}  Bxe5 {[%clk 0:01:56]} 19. Bf1 {[%clk 0:01:30]}  Rb6 {[%clk 0:01:55]} 20. Qd2 {[%clk 0:01:27]}  Na6 {[%clk 0:01:49]} 21. Ng2 {[%clk 0:01:26]}  Nc5 {[%clk 0:01:47]} 22. Rad1 {[%clk 0:01:26]}  Rb4 {[%clk 0:01:44]} 23. Nf4 {[%clk 0:01:16]}  Qg5 {[%clk 0:01:43]} 24. h4 {[%clk 0:01:12]}  Qh6 {[%clk 0:01:41]} 25. Bb5 {[%clk 0:00:42]}  Bxb5 {[%clk 0:01:34]} 26. axb5 {[%clk 0:00:42]}  Bxf4 {[%clk 0:01:34]} 27. Qxf4 {[%clk 0:00:41]}  Qxf4 {[%clk 0:01:33]} 28. gxf4 {[%clk 0:00:41]}  Rxb2 {[%clk 0:01:31]} 29. b6 {[%clk 0:00:34]}  Rxb6 {[%clk 0:01:28]} 30. Rb1 {[%clk 0:00:34]}  Rxb1 {[%clk 0:01:27]} 31. Rxb1 {[%clk 0:00:35]}  Ra8 {[%clk 0:01:25]} 32. Nb5 {[%clk 0:00:31]}  Rd8 {[%clk 0:01:21]} 33. Nd4 {[%clk 0:00:25]}  Rf8 {[%clk 0:01:21]} 34. Nb5 {[%clk 0:00:20]}  Rf6 {[%clk 0:01:19]} 35. Kf1 {[%clk 0:00:21]}  Kf7 {[%clk 0:01:19]} 36. Ke2 {[%clk 0:00:21]}  Ke7 {[%clk 0:01:19]} 37. h5 {[%clk 0:00:22]}  Rh6 {[%clk 0:01:08]} 38. Rh1 {[%clk 0:00:22]}  Rf6 {[%clk 0:01:05]} 39. Rg1 {[%clk 0:00:22]}  Kf7 {[%clk 0:01:06]} 40. Rb1 {[%clk 0:00:20]}  a4 {[%clk 0:01:06]} 41. Ke3 {[%clk 0:00:19]}  Ke7 {[%clk 0:01:04]} 42. Nd4 {[%clk 0:00:18]}  Rf8 {[%clk 0:01:02]} 43. Rg1 {[%clk 0:00:19]}  a3 {[%clk 0:00:59]} 44. Ra1 {[%clk 0:00:18]}  Ra8 {[%clk 0:00:53]} 45. Nxf5+ {[%clk 0:00:18]}  Kf6 {[%clk 0:00:51]} 46. Nxd6 {[%clk 0:00:18]}  Kg7 {[%clk 0:00:33]} 47. Ra2 {[%clk 0:00:16]}  Ra6 {[%clk 0:00:26]} 48. Nc4 {[%clk 0:00:14]}  b5 {[%clk 0:00:24]} 49. Rxa3 {[%clk 0:00:08]}  bxc4 {[%clk 0:00:24]} 50. Rxa6 {[%clk 0:00:08]}  Nxa6 {[%clk 0:00:25]} 51. Kxe4 {[%clk 0:00:08]}  c3 {[%clk 0:00:20]} 52. Kd3 {[%clk 0:00:08]}  Nb4+ {[%clk 0:00:21]} 53. Kxc3 {[%clk 0:00:09]}  Nxd5+ {[%clk 0:00:22]} 54. Kd4 {[%clk 0:00:09]}  Nxf4 {[%clk 0:00:23]} 55. Ke4 {[%clk 0:00:09]}  Nxh5 {[%clk 0:00:23]} 56. Kf5 {[%clk 0:00:09]}  Nf6 {[%clk 0:00:24]} 57. Kg5 {[%clk 0:00:09]}  h6+ {[%clk 0:00:24]} 58. Kf5 {[%clk 0:00:09]}  Kf7 {[%clk 0:00:25]} 59. f3 {[%clk 0:00:10]}  Kg7 {[%clk 0:00:25]} 60. Kf4 {[%clk 0:00:10]}  Kg6 {[%clk 0:00:25]} 61. Kg3 {[%clk 0:00:11]}  Kf5 {[%clk 0:00:25]} 62. Kh4 {[%clk 0:00:12]}  Kf4 {[%clk 0:00:26]} 0-1


[Site "https://www.chess.com"]

[Event "Titled Tuesday Blitz April 4 Early 2023"]
[White "Bettalli, Francesco"]
[Black "Iliaguev, Nisim"]
[WhiteFideId "2816453"]
[BlackFideId "2817276"]
[WhiteElo "2216"]
[BlackElo "2241"]
[Result "0-1"]
[Round "03"]
[TimeControl "180+2"]
[Date "2023.04.04"]
[WhiteClock "0:00:20"]
[BlackClock "0:00:26"]

1. d4 {[%clk 0:02:59]}  Nf6 {[%clk 0:03:00]} 2. Nc3 {[%clk 0:02:59]}  d5 {[%clk 0:02:57]} 3. Bf4 {[%clk 0:02:58]}  c5 {[%clk 0:02:57]} 4. e3 {[%clk 0:02:56]}  e6 {[%clk 0:02:56]} 5. Nf3 {[%clk 0:02:53]}  Bd6 {[%clk 0:02:55]} 6. dxc5 {[%clk 0:02:49]}  Bxf4 {[%clk 0:02:55]} 7. exf4 {[%clk 0:02:44]}  O-O {[%clk 0:02:55]} 8. Bd3 {[%clk 0:02:44]}  Qc7 {[%clk 0:02:54]} 9. g3 {[%clk 0:02:42]}  Qxc5 {[%clk 0:02:52]} 10. O-O {[%clk 0:02:40]}  Nc6 {[%clk 0:02:52]} 11. Ne5 {[%clk 0:02:38]}  Bd7 {[%clk 0:02:46]} 12. Qe2 {[%clk 0:02:34]}  Rac8 {[%clk 0:02:42]} 13. Rad1 {[%clk 0:02:18]}  h6 {[%clk 0:02:41]} 14. g4 {[%clk 0:02:13]}  Qd6 {[%clk 0:02:23]} 15. Rfe1 {[%clk 0:01:59]}  a6 {[%clk 0:02:22]} 16. g5 {[%clk 0:01:56]}  hxg5 {[%clk 0:02:19]} 17. Nxc6 {[%clk 0:01:51]}  Bxc6 {[%clk 0:02:07]} 18. fxg5 {[%clk 0:01:51]}  Ne8 {[%clk 0:01:57]} 19. Qh5 {[%clk 0:01:37]}  g6 {[%clk 0:01:57]} 20. Bxg6 {[%clk 0:01:37]}  fxg6 {[%clk 0:01:55]} 21. Qxg6+ {[%clk 0:01:38]}  Ng7 {[%clk 0:01:56]} 22. Ne4 {[%clk 0:01:39]}  Be8 {[%clk 0:00:59]} 23. Qxg7+ {[%clk 0:01:32]}  Kxg7 {[%clk 0:00:59]} 24. Nxd6 {[%clk 0:01:32]}  Rxc2 {[%clk 0:01:00]} 25. Rxe6 {[%clk 0:01:28]}  Bc6 {[%clk 0:00:58]} 26. Rf1 {[%clk 0:01:10]}  d4 {[%clk 0:00:58]} 27. h4 {[%clk 0:00:55]}  Rf4 {[%clk 0:00:58]} 28. h5 {[%clk 0:00:52]}  Rg4+ {[%clk 0:00:55]} 29. Kh2 {[%clk 0:00:52]}  Rxg5 {[%clk 0:00:54]} 30. h6+ {[%clk 0:00:52]}  Kh7 {[%clk 0:00:53]} 31. Nf7 {[%clk 0:00:44]}  Rf5 {[%clk 0:00:47]} 32. Re7 {[%clk 0:00:38]}  Rfxf2+ {[%clk 0:00:47]} 33. Rxf2 {[%clk 0:00:38]}  Rxf2+ {[%clk 0:00:48]} 34. Kg3 {[%clk 0:00:39]}  Rxb2 {[%clk 0:00:48]} 35. Kh4 {[%clk 0:00:32]}  Rxa2 {[%clk 0:00:29]} 36. Nd6+ {[%clk 0:00:21]}  Kxh6 {[%clk 0:00:26]} 37. Nf5+ {[%clk 0:00:21]}  Kg6 {[%clk 0:00:26]} 38. Nxd4 {[%clk 0:00:20]}  Ra4 {[%clk 0:00:26]} 39. Re6+ {[%clk 0:00:20]}  Kf7 {[%clk 0:00:26]} 40. Rd6 {[%clk 0:00:20]}  Ke7 {[%clk 0:00:26]} 0-1


[Site "https://www.chess.com"]

[Event "Titled Tuesday Blitz April 4 Early 2023"]
[White "Wahedi, Ahmad Siar"]
[Black "Krysa, Leandro"]
[WhiteFideId "4651260"]
[BlackFideId "116807"]
[WhiteElo "2251"]
[BlackElo "2489"]
[Result "0-1"]
[Round "03"]
[TimeControl "180+2"]
[Date "2023.04.04"]
[WhiteClock "0:00:16"]
[BlackClock "0:00:09"]

1. e4 {[%clk 0:03:00]}  c5 {[%clk 0:02:59]} 2. Nf3 {[%clk 0:03:00]}  Nc6 {[%clk 0:02:59]} 3. d4 {[%clk 0:03:00]}  cxd4 {[%clk 0:03:00]} 4. Nxd4 {[%clk 0:03:00]}  Nf6 {[%clk 0:03:00]} 5. Nc3 {[%clk 0:03:00]}  d6 {[%clk 0:03:01]} 6. g3 {[%clk 0:02:57]}  g6 {[%clk 0:02:53]} 7. Bg2 {[%clk 0:02:52]}  Nxd4 {[%clk 0:02:53]} 8. Qxd4 {[%clk 0:02:51]}  Bg7 {[%clk 0:02:54]} 9. O-O {[%clk 0:02:51]}  O-O {[%clk 0:02:53]} 10. Bg5 {[%clk 0:02:48]}  Be6 {[%clk 0:02:47]} 11. Qd2 {[%clk 0:02:45]}  Rc8 {[%clk 0:02:36]} 12. Rfe1 {[%clk 0:02:44]}  Re8 {[%clk 0:02:27]} 13. Rad1 {[%clk 0:02:42]}  Nd7 {[%clk 0:02:19]} 14. Be3 {[%clk 0:02:25]}  Nb6 {[%clk 0:02:10]} 15. Bd4 {[%clk 0:02:21]}  Nc4 {[%clk 0:02:06]} 16. Qc1 {[%clk 0:02:20]}  Bxd4 {[%clk 0:02:06]} 17. Rxd4 {[%clk 0:02:20]}  Qb6 {[%clk 0:02:06]} 18. Rxc4 {[%clk 0:02:01]}  Rxc4 {[%clk 0:02:02]} 19. Nd1 {[%clk 0:02:00]}  Rec8 {[%clk 0:01:54]} 20. c3 {[%clk 0:02:00]}  R4c5 {[%clk 0:01:48]} 21. a3 {[%clk 0:01:57]}  a5 {[%clk 0:01:42]} 22. Ne3 {[%clk 0:01:55]}  Qb3 {[%clk 0:01:25]} 23. h3 {[%clk 0:01:53]}  h5 {[%clk 0:01:19]} 24. Re2 {[%clk 0:01:53]}  Kg7 {[%clk 0:01:18]} 25. Qe1 {[%clk 0:01:50]}  R5c7 {[%clk 0:01:02]} 26. Rd2 {[%clk 0:01:48]}  Qb5 {[%clk 0:01:00]} 27. Kh2 {[%clk 0:01:45]}  Qc5 {[%clk 0:00:59]} 28. f4 {[%clk 0:01:40]}  h4 {[%clk 0:00:51]} 29. gxh4 {[%clk 0:01:35]}  Rh8 {[%clk 0:00:49]} 30. Qg3 {[%clk 0:01:30]}  Qh5 {[%clk 0:00:45]} 31. f5 {[%clk 0:01:27]}  Bb3 {[%clk 0:00:45]} 32. fxg6 {[%clk 0:01:20]}  Qxg6 {[%clk 0:00:36]} 33. Qf4 {[%clk 0:01:11]}  Qf6 {[%clk 0:00:32]} 34. Qg3+ {[%clk 0:01:08]}  Kf8 {[%clk 0:00:30]} 35. Ng4 {[%clk 0:01:00]}  Qxh4 {[%clk 0:00:27]} 36. Qxh4 {[%clk 0:00:28]}  Rxh4 {[%clk 0:00:27]} 37. e5 {[%clk 0:00:29]}  dxe5 {[%clk 0:00:23]} 38. Nxe5 {[%clk 0:00:26]}  Be6 {[%clk 0:00:22]} 39. Kg3 {[%clk 0:00:25]}  Rh5 {[%clk 0:00:22]} 40. Rd8+ {[%clk 0:00:21]}  Kg7 {[%clk 0:00:22]} 41. Nf3 {[%clk 0:00:22]}  Rh8 {[%clk 0:00:21]} 42. Rd4 {[%clk 0:00:21]}  Rc5 {[%clk 0:00:20]} 43. Nd2 {[%clk 0:00:18]}  b5 {[%clk 0:00:18]} 44. Nf1 {[%clk 0:00:16]}  Rg5+ {[%clk 0:00:17]} 45. Kf2 {[%clk 0:00:16]}  Rxg2+ {[%clk 0:00:13]} 46. Kxg2 {[%clk 0:00:15]}  Bxh3+ {[%clk 0:00:14]} 47. Kf2 {[%clk 0:00:16]}  Bxf1 {[%clk 0:00:14]} 48. Kxf1 {[%clk 0:00:17]}  Rh2 {[%clk 0:00:13]} 49. b4 {[%clk 0:00:17]}  axb4 {[%clk 0:00:13]} 50. Rxb4 {[%clk 0:00:17]}  Rc2 {[%clk 0:00:13]} 51. Rxb5 {[%clk 0:00:17]}  Rxc3 {[%clk 0:00:13]} 52. a4 {[%clk 0:00:18]}  Ra3 {[%clk 0:00:13]} 53. a5 {[%clk 0:00:19]}  Kg6 {[%clk 0:00:12]} 54. Kf2 {[%clk 0:00:19]}  f5 {[%clk 0:00:12]} 55. Rb6+ {[%clk 0:00:18]}  Kg5 {[%clk 0:00:11]} 56. a6 {[%clk 0:00:19]}  e5 {[%clk 0:00:11]} 57. Rb5 {[%clk 0:00:18]}  e4 {[%clk 0:00:11]} 58. Rb6 {[%clk 0:00:19]}  Kf4 {[%clk 0:00:11]} 59. Ke2 {[%clk 0:00:19]}  Ra2+ {[%clk 0:00:11]} 60. Kd1 {[%clk 0:00:19]}  Kf3 {[%clk 0:00:11]} 61. Rf6 {[%clk 0:00:18]}  f4 {[%clk 0:00:10]} 62. Re6 {[%clk 0:00:18]}  e3 {[%clk 0:00:11]} 63. Kc1 {[%clk 0:00:15]}  e2 {[%clk 0:00:09]} 64. Kb1 {[%clk 0:00:16]}  Rxa6 {[%clk 0:00:09]} 0-1


[Site "https://www.chess.com"]

[Event "Titled Tuesday Blitz April 4 Early 2023"]
[White "KorolDimitriy75"]
[Black "De La Colina, Nicolas"]
[BlackFideId "30946921"]
[WhiteElo "2470"]
[BlackElo "2046"]
[Result "0-1"]
[Round "03"]
[TimeControl "180+2"]
[Date "2023.04.04"]
[WhiteClock "0:00:02"]
[BlackClock "0:00:10"]

1. d4 {[%clk 0:03:00]}  g6 {[%clk 0:02:59]} 2. c4 {[%clk 0:03:00]}  Bg7 {[%clk 0:03:00]} 3. Nf3 {[%clk 0:02:57]}  d6 {[%clk 0:03:00]} 4. Nc3 {[%clk 0:02:56]}  Nf6 {[%clk 0:02:58]} 5. e4 {[%clk 0:02:56]}  O-O {[%clk 0:02:59]} 6. Be2 {[%clk 0:02:56]}  Nbd7 {[%clk 0:02:59]} 7. O-O {[%clk 0:02:55]}  e5 {[%clk 0:02:59]} 8. Re1 {[%clk 0:02:55]}  c6 {[%clk 0:02:54]} 9. Bf1 {[%clk 0:02:53]}  Re8 {[%clk 0:02:53]} 10. Rb1 {[%clk 0:02:46]}  h6 {[%clk 0:02:47]} 11. h3 {[%clk 0:02:36]}  Qe7 {[%clk 0:02:44]} 12. b4 {[%clk 0:02:24]}  exd4 {[%clk 0:02:31]} 13. Nxd4 {[%clk 0:02:24]}  d5 {[%clk 0:02:27]} 14. cxd5 {[%clk 0:02:04]}  Nxd5 {[%clk 0:02:18]} 15. Nxd5 {[%clk 0:01:40]}  cxd5 {[%clk 0:02:18]} 16. Nb5 {[%clk 0:01:33]}  Nb6 {[%clk 0:01:41]} 17. Bf4 {[%clk 0:01:20]}  Rd8 {[%clk 0:01:28]} 18. exd5 {[%clk 0:00:59]}  Qf8 {[%clk 0:01:09]} 19. Nc7 {[%clk 0:00:54]}  Rb8 {[%clk 0:01:08]} 20. d6 {[%clk 0:00:50]}  Bf5 {[%clk 0:01:05]} 21. Bd3 {[%clk 0:00:49]}  Bxd3 {[%clk 0:00:46]} 22. Qxd3 {[%clk 0:00:50]}  Rd7 {[%clk 0:00:47]} 23. Rbd1 {[%clk 0:00:42]}  Rbd8 {[%clk 0:00:46]} 24. Nd5 {[%clk 0:00:20]}  Nc8 {[%clk 0:00:33]} 25. Ne7+ {[%clk 0:00:19]}  Kh8 {[%clk 0:00:33]} 26. Nxc8 {[%clk 0:00:17]}  Rxc8 {[%clk 0:00:34]} 27. Qd5 {[%clk 0:00:17]}  Rcd8 {[%clk 0:00:31]} 28. a3 {[%clk 0:00:15]}  Kh7 {[%clk 0:00:25]} 29. Bg3 {[%clk 0:00:15]}  Qg8 {[%clk 0:00:18]} 30. Qc5 {[%clk 0:00:13]}  b6 {[%clk 0:00:18]} 31. Qc6 {[%clk 0:00:13]}  Bf8 {[%clk 0:00:19]} 32. Rd5 {[%clk 0:00:10]}  g5 {[%clk 0:00:19]} 33. Red1 {[%clk 0:00:10]}  Qg6 {[%clk 0:00:20]} 34. Qc4 {[%clk 0:00:08]}  Qe6 {[%clk 0:00:19]} 35. Qd3+ {[%clk 0:00:07]}  Kg8 {[%clk 0:00:18]} 36. Re5 {[%clk 0:00:07]}  Qf6 {[%clk 0:00:17]} 37. Rf5 {[%clk 0:00:05]}  Qg6 {[%clk 0:00:17]} 38. Rd5 {[%clk 0:00:05]}  Qe6 {[%clk 0:00:18]} 39. Re5 {[%clk 0:00:05]}  Qa2 {[%clk 0:00:17]} 40. Rd5 {[%clk 0:00:05]}  a5 {[%clk 0:00:12]} 41. Kh2 {[%clk 0:00:04]}  axb4 {[%clk 0:00:12]} 42. axb4 {[%clk 0:00:05]}  Qa4 {[%clk 0:00:13]} 43. Qd4 {[%clk 0:00:05]}  Qc2 {[%clk 0:00:12]} 44. Qxb6 {[%clk 0:00:04]}  Qg6 {[%clk 0:00:11]} 45. Qd4 {[%clk 0:00:04]}  Bg7 {[%clk 0:00:12]} 46. Qd3 {[%clk 0:00:04]}  Qe6 {[%clk 0:00:11]} 47. b5 {[%clk 0:00:03]}  Bf6 {[%clk 0:00:10]} 48. b6 {[%clk 0:00:03]}  h5 {[%clk 0:00:10]} 49. Qf5 {[%clk 0:00:02]}  h4 {[%clk 0:00:10]} 0-1


[Site "https://www.chess.com"]

[Event "Titled Tuesday Blitz April 4 Early 2023"]
[White "Bronstein, Or"]
[Black "Santos Flores, Alberto"]
[WhiteFideId "2815770"]
[BlackFideId "3601234"]
[WhiteElo "2356"]
[BlackElo "2235"]
[Result "1/2-1/2"]
[Round "03"]
[TimeControl "180+2"]
[Date "2023.04.04"]
[WhiteClock "0:00:14"]
[BlackClock "0:00:05"]

1. Nf3 {[%clk 0:03:00]}  c5 {[%clk 0:02:59]} 2. e4 {[%clk 0:02:57]}  Nc6 {[%clk 0:02:59]} 3. Nc3 {[%clk 0:02:48]}  g6 {[%clk 0:02:59]} 4. Bb5 {[%clk 0:02:46]}  Bg7 {[%clk 0:02:59]} 5. O-O {[%clk 0:02:44]}  Nf6 {[%clk 0:02:59]} 6. e5 {[%clk 0:02:38]}  Ng4 {[%clk 0:02:59]} 7. Bxc6 {[%clk 0:02:39]}  dxc6 {[%clk 0:02:59]} 8. Re1 {[%clk 0:02:39]}  O-O {[%clk 0:02:58]} 9. h3 {[%clk 0:02:39]}  Nh6 {[%clk 0:02:58]} 10. d3 {[%clk 0:02:39]}  Nf5 {[%clk 0:02:58]} 11. Bf4 {[%clk 0:02:38]}  Nd4 {[%clk 0:02:56]} 12. Nxd4 {[%clk 0:02:28]}  cxd4 {[%clk 0:02:55]} 13. Ne4 {[%clk 0:02:28]}  f5 {[%clk 0:02:53]} 14. Nd2 {[%clk 0:02:16]}  h6 {[%clk 0:02:48]} 15. h4 {[%clk 0:02:15]}  Be6 {[%clk 0:02:46]} 16. Nf3 {[%clk 0:02:12]}  c5 {[%clk 0:02:46]} 17. Qd2 {[%clk 0:02:10]}  Kh7 {[%clk 0:02:28]} 18. c4 {[%clk 0:01:45]}  dxc3 {[%clk 0:02:21]} 19. Qxc3 {[%clk 0:01:45]}  b6 {[%clk 0:02:17]} 20. d4 {[%clk 0:01:41]}  Bd5 {[%clk 0:02:14]} 21. dxc5 {[%clk 0:01:40]}  Bxf3 {[%clk 0:02:14]} 22. Qxf3 {[%clk 0:01:40]}  bxc5 {[%clk 0:02:13]} 23. b3 {[%clk 0:01:36]}  e6 {[%clk 0:02:04]} 24. g3 {[%clk 0:01:34]}  Qd5 {[%clk 0:01:59]} 25. Qe2 {[%clk 0:01:34]}  Rfd8 {[%clk 0:01:56]} 26. Rad1 {[%clk 0:01:34]}  Qc6 {[%clk 0:01:55]} 27. Qc4 {[%clk 0:01:26]}  Rd5 {[%clk 0:01:54]} 28. b4 {[%clk 0:01:15]}  Rc8 {[%clk 0:01:49]} 29. b5 {[%clk 0:01:13]}  Qd7 {[%clk 0:01:47]} 30. Rxd5 {[%clk 0:01:12]}  exd5 {[%clk 0:01:47]} 31. Qe2 {[%clk 0:01:02]}  Qe6 {[%clk 0:01:46]} 32. a4 {[%clk 0:01:00]}  d4 {[%clk 0:01:42]} 33. Rc1 {[%clk 0:00:59]}  c4 {[%clk 0:01:41]} 34. Qd2 {[%clk 0:00:55]}  Bxe5 {[%clk 0:01:36]} 35. Bxe5 {[%clk 0:00:27]}  Qxe5 {[%clk 0:01:36]} 36. Qb4 {[%clk 0:00:26]}  c3 {[%clk 0:01:30]} 37. a5 {[%clk 0:00:27]}  d3 {[%clk 0:01:29]} 38. b6 {[%clk 0:00:21]}  axb6 {[%clk 0:01:29]} 39. axb6 {[%clk 0:00:21]}  d2 {[%clk 0:01:27]} 40. Ra1 {[%clk 0:00:20]}  Qe1+ {[%clk 0:01:13]} 41. Kh2 {[%clk 0:00:19]}  Qxa1 {[%clk 0:00:11]} 42. Qe7+ {[%clk 0:00:19]}  Kh8 {[%clk 0:00:11]} 43. Qf6+ {[%clk 0:00:19]}  Kh7 {[%clk 0:00:11]} 44. Qf7+ {[%clk 0:00:20]}  Kh8 {[%clk 0:00:11]} 45. Qf6+ {[%clk 0:00:20]}  Kh7 {[%clk 0:00:08]} 46. h5 {[%clk 0:00:17]}  gxh5 {[%clk 0:00:05]} 47. Qf7+ {[%clk 0:00:16]}  Kh8 {[%clk 0:00:05]} 48. Qf6+ {[%clk 0:00:17]}  Kh7 {[%clk 0:00:05]} 49. Qf7+ {[%clk 0:00:14]}  Kh8 {[%clk 0:00:05]} 50. Qf6+ {[%clk 0:00:14]}  Kh7 {[%clk 0:00:05]} 1/2-1/2


[Site "https://www.chess.com"]

[Event "Titled Tuesday Blitz April 4 Early 2023"]
[White "EREBUNI91"]
[Black "Shubenkova, Veronika"]
[BlackFideId "44124040"]
[WhiteElo "2679"]
[BlackElo "2027"]
[Result "1-0"]
[Round "03"]
[TimeControl "180+2"]
[Date "2023.04.04"]
[WhiteClock "0:00:54"]
[BlackClock "0:00:11"]

1. e4 {[%clk 0:03:00]}  e6 {[%clk 0:02:59]} 2. d4 {[%clk 0:03:00]}  d5 {[%clk 0:03:00]} 3. Nc3 {[%clk 0:03:01]}  Nf6 {[%clk 0:03:00]} 4. Bg5 {[%clk 0:03:00]}  Be7 {[%clk 0:03:00]} 5. e5 {[%clk 0:03:01]}  Nfd7 {[%clk 0:03:01]} 6. h4 {[%clk 0:03:01]}  h6 {[%clk 0:03:01]} 7. Bxe7 {[%clk 0:03:01]}  Qxe7 {[%clk 0:03:02]} 8. Qg4 {[%clk 0:03:01]}  g6 {[%clk 0:03:02]} 9. O-O-O {[%clk 0:02:57]}  h5 {[%clk 0:03:02]} 10. Qf4 {[%clk 0:02:56]}  a6 {[%clk 0:03:03]} 11. Nf3 {[%clk 0:02:56]}  c5 {[%clk 0:03:03]} 12. dxc5 {[%clk 0:02:41]}  Nxc5 {[%clk 0:03:01]} 13. Ng5 {[%clk 0:02:27]}  Nc6 {[%clk 0:02:59]} 14. Rxd5 {[%clk 0:02:19]}  exd5 {[%clk 0:02:27]} 15. Nxd5 {[%clk 0:02:20]}  Qxe5 {[%clk 0:02:27]} 16. Nc7+ {[%clk 0:01:57]}  Ke7 {[%clk 0:02:02]} 17. Qxf7+ {[%clk 0:01:19]}  Kd8 {[%clk 0:02:00]} 18. Bc4 {[%clk 0:01:16]}  Rb8 {[%clk 0:01:21]} 19. Rd1+ {[%clk 0:01:09]}  Bd7 {[%clk 0:01:21]} 20. Nce6+ {[%clk 0:01:01]}  Kc8 {[%clk 0:01:07]} 21. Nxc5 {[%clk 0:01:00]}  Bf5 {[%clk 0:00:59]} 22. Be6+ {[%clk 0:00:53]}  Bxe6 {[%clk 0:00:59]} 23. Ngxe6 {[%clk 0:00:54]}  Rd8 {[%clk 0:00:12]} 24. Rxd8+ {[%clk 0:00:53]}  Nxd8 {[%clk 0:00:11]} 25. Qd7# {[%clk 0:00:54]} 1-0


[Site "https://www.chess.com"]